Cogmind - Beta 16.1 @@@ ROGUE MODE // 2026.06.17 @ 17:11:53 Player: Nalesnig Result: Destroyed by G-67 Veteran with Field Laser Performance ------------- Evolutions (7) 3500 Regions Visited (23) 4600 Robots Destroyed (195) 975 Value Destroyed (8830) 8830 Prototype IDs (53) 1060 Alien Tech Used (0) 0 Bonus (2285) 2285 TOTAL SCORE: 21250 Bonus ------- High Alert Combat Kills 197 Follower Combat Kills 461 Entered Garrisons 800 Aligned with FarCom 300 Met Data Miner 300 Acquired ECA 300 Friendly Fire -73 Cogmind --------- Core Integrity 0/1300 Matter 7/300 Energy 68/100 System Corruption 25% Temperature Cool (9) Movement Core (50) Location -3/Garrison Parts ------- > --- POWER (2) -------- (None) > --- PROPULSION (6) --- (None) > --- UTILITY (9) ------ (None) > --- WEAPON (4) ------- (None) > --- INVENTORY (5) ---- (None) Peak State ------------ > --- POWER ------------ Angular Momentum Engine > --- PROPULSION ------- Armored Leg Advanced VSS Leg Biometal Leg Enhanced Biometal Leg Centrium Wheel Centrium Wheel > --- UTILITY ---------- Advanced Coolant Injector Energy Well Enhanced Optical Array Improved Salvage Targeting Computer Matter Filter Improved Core Shielding Focal Shield Advanced EM Disruption Field Advanced Force Field > --- WEAPON ----------- Phase Gun Bore Cannon Hypervelocity Gauss Cannon Powered Hammer > --- INVENTORY -------- Encrypted Comm Array Phase Gun Advanced Variable Charge Gun Railgun Helical Railgun [Rating: 123] Favorites ----------- Power Micro Fission Core Engine Light Angular Momentum Engine Power Core Micro Fission Core Reactor Light Antimatter Reactor Propulsion Improved Titanium Leg Treads Light Treads Leg Improved Titanium Leg Wheel Centrium Wheel Flight Unit Electron Diverter Utility Large Storage Unit Device Improved Heat Sink Storage Large Storage Unit Processor Enhanced Optical Array Protection Layered Medium Armor Plating Weapon Variable Charge Gun Energy Gun Variable Charge Gun Energy Cannon Neutron Cannon Ballistic Gun KE Penetrator Ballistic Cannon Heavy Flak Cannon Launcher Advanced EMP Blaster Impact Weapon Powered Hammer Slashing Weapon Chainsword Build | -11 -10 -10 -10 -9 -8 -8 -8 -7 -7 -7 -6 -6 -6 -6 -5 -5 -4 -4 -4 -4 -4 -3 -3 ------- Run | Yrd Mat Min Exi Min Mat Gar Mat Fac Gar Fac Fac Low Low Dat Pro Fac Fac Gar Fac Upp Upp Res Gar Slots Evolved 14 | . . . . . 4 . . 2 . . 2 . . . . 2 2 . . . . 2 . Power 1 | . . . . . . . . . . . . . . . . 1 . . . . . . . Propulsion 4 | . . . . . 1 . . 1 . . . . . . . . 1 . . . . 1 . Utility 7 | . . . . . 2 . . 1 . . 1 . . . . 1 1 . . . . 1 . Weapon 2 | . . . . . 1 . . . . . 1 . . . . . . . . . . . . Parts Attached 179 | 7 5 2 . 3 21 3 3 14 9 4 12 6 4 . 10 10 5 11 10 15 . 19 6 Power 19 | 1 1 1 . . 3 . . 1 1 . 1 1 1 . 1 2 . 1 1 1 . 1 1 Engine 9 | 1 1 . . . 1 . . 1 . . 1 . 1 . 1 . . . . 1 . . 1 Core 7 | . . 1 . . 2 . . . 1 . . 1 . . . 2 . . . . . . . Reactor 3 | . . . . . . . . . . . . . . . . . . 1 1 . . 1 . Propulsion 46 | 2 . 1 . 1 4 1 . 3 2 1 3 4 . . 3 1 4 2 5 3 . 5 1 Treads 6 | 2 . . . . . . . 1 . . . . . . . . . . . 2 . . 1 Leg 34 | . . . . . 4 1 . 2 2 1 3 4 . . 1 1 4 2 5 1 . 3 . Wheel 5 | . . 1 . 1 . . . . . . . . . . 2 . . . . . . 1 . Hover . | . . . . . . . . . . . . . . . . . . . . . . . . Flight 1 | . . . . . . . . . . . . . . . . . . . . . . 1 . Utility 53 | 2 1 . . 1 6 1 2 3 1 2 5 1 3 . 2 3 . 3 3 5 . 9 . Device 30 | 1 . . . 1 2 . 1 1 . 1 3 1 1 . 1 3 . 3 2 4 . 5 . Storage 4 | 1 1 . . . 1 . . . . . . . 1 . . . . . . . . . . Processor 6 | . . . . . 1 . . 1 . . 1 . . . . . . . . 1 . 2 . Hackware . | . . . . . . . . . . . . . . . . . . . . . . . . Protection 13 | . . . . . 2 1 1 1 1 1 1 . 1 . 1 . . . 1 . . 2 . Artifact . | . . . . . . . . . . . . . . . . . . . . . . . . Weapon 61 | 2 3 . . 1 8 1 1 7 5 1 3 . . . 4 4 1 5 1 6 . 4 4 Energy Gun 20 | . 1 . . . 4 . 1 2 1 . 2 . . . . . 1 2 . 1 . 3 2 Energy Cannon 4 | . . . . . 1 . . . . . . . . . 2 . . 1 . . . . . Ballistic Gun 11 | 2 . . . . . . . . 3 . . . . . . 1 . 1 . 1 . 1 2 Ballistic Cannon 18 | . 2 . . . 2 . . 2 1 1 1 . . . 2 1 . 1 1 4 . . . Launcher 4 | . . . . 1 1 1 . . . . . . . . . 1 . . . . . . . Special Weapon . | . . . . . . . . . . . . . . . . . . . . . . . . Impact Weapon 2 | . . . . . . . . 1 . . . . . . . 1 . . . . . . . Slashing Weapon 2 | . . . . . . . . 2 . . . . . . . . . . . . . . . Piercing Weapon . | . . . . . . . . . . . . . . . . . . . . . . . . Special Melee Weapon . | . . . . . . . . . . . . . . . . . . . . . . . . Unidentified Prototypes 13 | . . . . . 3 . . 1 . . . . . . 1 2 1 . . . . 5 . Corrupted Parts 1 | . . . . . . . . . 1 . . . . . . . . . . . . . . System Corruption 2 | . . . . . . . . . 2 . . . . . . . . . . . . . . Parts Lost 105 | . 1 1 . 2 1 3 2 4 9 2 2 7 1 . 11 2 . 11 10 8 . 28 . Power 11 | . . . . . . . . 1 1 . . 1 1 . 1 . . 2 2 . . 2 . Propulsion 32 | . . 1 . 1 . 2 . 1 3 1 1 4 . . 4 . . . 4 3 . 7 . Utility 32 | . . . . 1 . 1 1 2 1 1 . 1 . . 2 1 . 4 4 2 . 11 . Weapon 30 | . 1 . . . 1 . 1 . 4 . 1 1 . . 4 1 . 5 . 3 . 8 . Highest Loss Streak 21 | . 1 1 . 2 1 3 2 1 9 2 1 3 1 . 8 1 . 6 8 6 . 21 . To Critical Strikes 4 | . . . . . . . . . . . . . . . 2 . . . 2 . . . . Average Backups 12 | 2 6 7 9 9 14 11 12 14 14 13 13 13 13 14 11 13 14 13 13 13 15 12 . Power 1 | . 1 . 3 4 4 2 2 2 . . . . . . . . 1 . . . . . . Propulsion 2 | 1 2 1 1 . 3 2 2 3 3 4 3 4 3 3 2 3 3 4 5 2 2 1 . Utility 2 | . 1 2 2 1 . . 2 2 1 2 3 2 3 4 4 4 3 2 1 1 4 2 . Weapon 4 | . 2 3 2 2 4 4 4 5 6 6 5 5 5 5 3 4 4 3 5 6 7 6 . Tool/Special . | . . . . . . . . . . . . . . . . . . . . . . . . Unused Backups 22 | . . . 1 . . 2 1 7 . 1 . 1 . . . 2 1 1 . 1 . 4 . Power 3 | . . . . . . 2 . 1 . . . . . . . . . . . . . . . Propulsion 1 | . . . . . . . . . . 1 . . . . . . . . . . . . . Utility 7 | . . . . . . . 1 2 . . . 1 . . . 2 . . . . . 1 . Weapon 10 | . . . 1 . . . . 4 . . . . . . . . 1 1 . 1 . 2 . Tool/Special 1 | . . . . . . . . . . . . . . . . . . . . . . 1 . Average Slot Usage (%) 87 | . 97 95 100 100 91 89 91 94 96 97 94 90 86 69 77 92 90 87 77 69 94 86 15 Engine 3 | . 13 4 . . 1 8 9 6 5 . 2 4 5 6 5 2 . . . 1 5 3 1 Core 3 | . . 9 14 14 7 . . . 1 7 3 1 . . . 7 10 6 . . . . . Treads 3 | . 28 15 14 13 . . . 5 4 . . . . . . . . . . 1 10 5 1 Leg 18 | . . . . . 25 27 27 22 23 29 25 24 26 26 13 5 19 26 25 21 15 16 . Wheel 2 | . . 7 14 14 . . . . . . . . . . 4 11 3 . . . . 1 . Device 14 | . 14 14 14 14 11 9 10 13 15 15 18 20 15 13 11 16 15 14 14 12 21 19 7 Storage 9 | . 14 14 14 14 9 9 9 7 7 7 6 6 6 6 6 10 10 10 10 10 10 7 . Processor 4 | . . . . . 3 . . 2 7 7 6 6 6 6 6 5 5 5 5 6 10 8 . Protection 3 | . . . . . 4 9 8 10 6 5 7 . 3 6 5 5 5 2 1 . . 1 . Energy Gun 6 | . 1 . . . 5 18 18 15 8 . 5 13 13 2 9 6 5 4 . . . 2 2 Ballistic Gun 3 | . 21 . . . . . . . 10 9 1 . . . . 3 5 4 5 3 5 1 2 Ballistic Cannon 8 | . 3 28 28 28 20 7 9 3 1 11 10 11 6 . 3 1 5 3 5 9 14 8 . Impact Weapon 1 | . . . . . . . . 1 1 . 3 . . . 2 4 5 1 3 . . 3 . Peak Build Rating 123 | 7 7 9 11 11 39 41 40 47 48 47 66 68 66 66 71 93 99 108 101 100 100 123 37 Average Rating 62 | 4 6 8 10 10 31 38 38 43 45 45 57 61 63 52 63 87 96 98 89 81 100 105 17 On Entrance 49 | . 7 7 9 11 11 39 38 40 47 45 47 66 59 66 66 70 90 99 90 81 100 100 7 Avg Prop Armor Cover (%) 7 | . . 11 11 11 . . . 4 5 . . . 11 . 3 3 4 . . 7 9 11 . Naked Turns 16 | . . . . . . . . . . . . . . . . . . . . . . . 16 Heaviest Build 87 | 14 22 22 22 22 56 54 52 61 53 56 67 69 70 70 78 74 74 80 69 86 86 87 29 Greatest Support 122 | 40 40 20 16 32 60 60 60 60 57 57 65 66 66 66 66 44 103 117 122 119 61 91 23 Greatest Overweight (x) 4 | . . 1 1 1 1 . . 1 1 1 1 1 1 1 4 1 1 . . 1 1 3 3 Average Overweight (x) . | . . . 1 . . . . . . . . . . . 1 1 . . . . 1 . . Largest Inventory Capacity 15 | 8 10 10 10 10 15 15 15 15 15 15 15 15 15 15 15 15 15 15 15 15 15 15 5 Average Capacity 14 | 7 8 10 10 10 14 15 15 15 15 15 15 15 15 15 15 15 15 15 15 15 15 12 5 Most Carried 15 | 4 8 8 10 10 15 15 15 15 15 15 15 15 15 15 15 15 15 15 15 15 15 15 . Average Carried 13 | 3 6 7 9 9 14 11 12 14 14 14 14 14 14 15 12 13 14 13 14 13 15 12 . Final Capacity 15 | 8 10 10 10 10 15 15 15 15 15 15 15 15 15 15 15 15 15 15 15 15 15 5 5 Final Carried 15 | 4 7 7 10 8 15 9 15 15 13 15 15 14 15 15 12 15 15 14 14 15 15 1 . Class Distribution -------------------- 27% | Scavenger-Tank 25% | Skirmisher 20% | Mutant 16% | Scavenger-Skirmisher 4% | Tank Dominant Class ---------------- Mutant | -10/Materials Mutant | -10/Mines Mutant | -10/Exiles Mutant | -9/Mines Skirmisher | -8/Materials Skirmisher | -8/Garrison Skirmisher | -8/Materials Mutant | -7/Factory Skirmisher | -7/Garrison Scavenger-Skirmisher | -7/Factory Scavenger-Skirmisher | -6/Factory Scavenger-Tank | -6/Lower Caves Scavenger-Tank | -6/Lower Caves Scavenger-Mutant | -6/Data Miner Scavenger-Tank | -5/Proximity Caves Scavenger-Skirmisher | -5/Factory Scavenger-Tank | -4/Factory Scavenger-Tank | -4/Garrison Scavenger-Assassin | -4/Factory Skirmisher | -4/Upper Caves Scavenger-Tank | -4/Upper Caves Scavenger-Tank | -3/Research Mutant | -3/Garrison Resources | -11 -10 -10 -10 -9 -8 -8 -8 -7 -7 -7 -6 -6 -6 -6 -5 -5 -4 -4 -4 -4 -4 -3 -3 ----------- Run | Yrd Mat Min Exi Min Mat Gar Mat Fac Gar Fac Fac Low Low Dat Pro Fac Fac Gar Fac Upp Upp Res Gar Matter Collected 6179 | 215 189 77 . 19 537 309 117 306 537 175 470 480 126 . 399 428 . 481 468 618 54 174 . Remotely . | . . . . . . . . . . . . . . . . . . . . . . . . Salvage Created 8735 | 29 446 67 . 37 533 716 389 611 918 261 545 562 170 . 1146 311 . 388 464 797 47 298 . Parts 373 | 4 31 1 . 4 25 39 14 44 46 14 22 15 10 . 33 15 . 8 9 17 5 17 . Haulers Intercepted 8 | . 1 . . . 4 . . 3 . . . . . . . . . . . . . . . Recyclers Shooed 6 | . . . . . 1 . . 2 . . 2 . . . . . . . 1 . . . . Parts Field Recycled . | . . . . . . . . . . . . . . . . . . . . . . . . Retrieved Matter . | . . . . . . . . . . . . . . . . . . . . . . . . Parts Self-Destructed 63 | . . . . . . . . . . . . 8 11 . 32 . . . . 9 3 . . Prevented 4 | . . . . . . . . . . . . . . . 4 . . . . . . . . Parts Restored . | . . . . . . . . . . . . . . . . . . . . . . . . Kills | -11 -10 -10 -10 -9 -8 -8 -8 -7 -7 -7 -6 -6 -6 -6 -5 -5 -4 -4 -4 -4 -4 -3 -3 ------- Run | Yrd Mat Min Exi Min Mat Gar Mat Fac Gar Fac Fac Low Low Dat Pro Fac Fac Gar Fac Upp Upp Res Gar Combat Hostiles Destroyed 159 | . 13 2 . 3 8 19 6 9 16 6 5 8 6 . 12 9 . 11 4 14 4 4 . Guns 66 | . 13 . . . 1 8 5 5 11 2 3 2 3 . 1 3 . 2 3 2 . 2 . Cannons 61 | . . 2 . 1 7 4 1 4 . 4 2 6 3 . 10 3 . 5 1 6 . 2 . AOE 29 | . . . . 2 . 7 . . 5 . . . . . . 1 . 4 . 6 4 . . Classes Destroyed 18 | 1 4 . . . 2 3 1 1 . . 1 2 . . . 1 . 1 . . . 1 . Worker 12 | . . . . . . . . 2 . . 6 . . . . 1 . . . . . 3 . Builder 2 | . . . . . . . . . . . . . . . . 2 . . . . . . . Tunneler 3 | 1 . . . . . . . . . 1 . . . . . . . . 1 . . . . Hauler 8 | . 1 . . . 4 . . 3 . . . . . . . . . . . . . . . Recycler 7 | . . . . . 1 . 1 1 . . 2 . . . . . . . 2 . . . . Watcher 4 | . 1 . . . 1 . . 1 . . . . . . . 1 . . . . . . . Swarmer 41 | . 6 . . 2 2 7 . 3 . . . . 4 . 4 3 . 4 . 2 4 . . Grunt 64 | . 7 2 . 1 2 8 1 1 9 6 2 5 2 . 3 . . 3 2 9 . 1 . Brawler 3 | . . . . . . 1 . . . . 1 . . . 1 . . . . . . . . Duelist 4 | . . . . . . 1 . . 2 . . . . . 1 . . . . . . . . Sentry 19 | . . . . . 4 1 4 1 4 . 1 . . . 1 1 . 1 . 1 . . . Demolisher 1 | . . . . . . . . . . . 1 . . . . . . . . . . . . Specialist 1 | . . . . . . . . . . . . . . . . . . . . . . 1 . Hunter 11 | . . . . . . . 1 2 1 . . 2 . . 1 . . 2 2 . . . . Programmer 11 | . . . . . . 1 . 2 . . . . . . 1 5 . . . . . 2 . Behemoth 2 | . . . . . . . . . . . . . . . . . . 1 . 1 . . . Packrat 3 | . . . . . . . . . . . . 3 . . . . . . . . . . . Samaritan 6 | . . . . . . . . . . . . 3 . . . . . . . 3 . . . Mutant 2 | . . . . . . . . . . . . 1 . . . . . . . 1 . . . Best Kill Streak 11 | 1 3 2 . 2 3 7 5 5 11 6 4 3 6 . 6 5 . 4 3 6 4 2 . Combat Bots Only 11 | . 3 2 . 2 2 7 4 3 11 6 2 3 6 . 6 3 . 4 2 6 4 2 . Max Kills in Single Turn 5 | 1 1 1 . 1 1 3 1 2 5 1 2 1 2 . 1 2 . 3 1 3 4 2 . Gunslinging 1 | . . . . . . 1 . . . . . . . . . . . . . . . . . Exploded 5 | . . . . 1 . 3 . . 5 . . . . . . 1 . 3 . 3 4 . . Melee . | . . . . . . . . . . . . . . . . . . . . . . . . Uniques/NPCs Destroyed . | . . . . . . . . . . . . . . . . . . . . . . . . Combat | -11 -10 -10 -10 -9 -8 -8 -8 -7 -7 -7 -6 -6 -6 -6 -5 -5 -4 -4 -4 -4 -4 -3 -3 -------- Run | Yrd Mat Min Exi Min Mat Gar Mat Fac Gar Fac Fac Low Low Dat Pro Fac Fac Gar Fac Upp Upp Res Gar Hostile Shots Fired 1621 | . 74 9 . 12 35 80 27 86 213 41 64 84 25 . 153 36 . 166 72 130 8 294 12 Missed 473 | . 15 1 . 4 10 16 11 26 95 13 18 19 5 . 40 10 . 61 12 43 3 67 4 Deflected 4 | . . . . . . . . . . . . . . . . . . . 4 . . . . Hits 1148 | . 59 8 . 8 25 64 16 60 118 28 46 65 20 . 113 26 . 105 60 87 5 227 8 Melee 5 | . . . . . . 1 . . 2 . . . . . 2 . . . . . . . . Projectile 1143 | . 59 8 . 8 25 63 16 60 116 28 46 65 20 . 111 26 . 105 60 87 5 227 8 Critical Strikes 53 | . 1 . . . 2 5 2 3 1 1 . 2 . . 7 3 . 3 2 4 . 17 . Actively Blocked 3 | . . . . . . . . . . . . . . . . . . . . . . 3 . Part Disruptions 1 | . . . . . . . . . . . . . . . . . . . . . . 1 . Damage Taken 19816 | . 596 101 . 69 473 1247 271 987 1254 453 686 945 371 . 2053 565 219 1790 1025 1798 57 4652 204 Core 3053 | . 94 18 . 8 66 67 . 48 153 30 77 187 89 . 234 42 . 179 79 377 . 1180 125 Absorbed by Shields 661 | . . . . . . . . . . . . 54 . . . . . 459 . . 21 127 . Redirected to Shielding 204 | . . . . . . . . . . . . . . . . . . . 101 . . 103 . Core Remaining (%) 66 | 100 . . . 52 . . 75 . . 67 . . . . 30 95 . . . . 44 . . Volleys Fired 556 | 2 42 5 . 3 34 47 16 35 48 14 34 44 9 . 48 37 . 46 24 37 1 29 1 Largest 4 | 2 2 2 . 2 3 3 3 3 3 3 4 4 3 . 4 3 . 4 3 4 1 3 4 Hottest 555 | 40 60 60 . 60 156 158 155 173 185 116 300 238 194 . 419 274 . 555 188 221 49 206 223 Shots Fired 1297 | 4 79 10 . 4 100 110 47 87 114 44 76 123 25 . 75 87 . 120 62 59 1 66 4 Gun 753 | 4 79 . . . 20 74 31 60 110 15 39 77 16 . 38 55 . 54 21 10 . 46 4 Cannon 516 | . . 10 . 2 80 26 16 27 . 29 37 46 9 . 37 30 . 63 41 43 . 20 . Launcher 28 | . . . . 2 . 10 . . 4 . . . . . . 2 . 3 . 6 1 . . Special . | . . . . . . . . . . . . . . . . . . . . . . . . Kinetic 729 | 4 65 10 . 2 78 26 16 27 82 44 46 46 9 . 31 37 . 50 57 52 . 45 2 Thermal 464 | . 14 . . . 4 74 30 30 7 . 30 77 16 . 39 48 . 67 5 . . 21 2 Explosive 14 | . . . . 2 . . . . . . . . . . . 2 . 3 . 6 1 . . Electromagnetic 90 | . . . . . 18 10 1 30 25 . . . . . 5 . . . . 1 . . . Robot Hit Streak 19 | 2 10 5 . 3 8 10 12 15 12 10 7 8 13 . 10 8 . 19 7 15 . 7 6 Robot Miss Streak 13 | 1 3 1 . . 5 4 3 6 3 5 7 13 4 . 5 3 . 2 4 5 1 3 2 Penetration Max 1 | . . . . . . . . . 1 . 1 . . . . . . . 1 1 . . . Secondary Targets 6 | . 3 . . . . 2 . . . . 1 . . . . . . . . . . . . Max Gunslinging Chain 1 | . 1 . . . . 1 . . . . 1 . . . . . . . . . . . . Shots Hit Robots 823 | 3 52 6 . 2 51 56 30 58 69 33 51 83 15 . 53 54 . 84 34 39 . 46 4 Core Hits 450 | 1 26 3 . 3 22 30 11 48 37 24 43 61 16 . 23 16 . 25 11 28 4 15 3 Critical Kills 8 | . . . . . . . . . 1 1 . . . . . . . . 1 3 . 2 . Critical Parts Destroyed 28 | . 1 . . . . . . . 3 1 1 . . . 2 . . 1 . 12 . 7 . Critical Strikes 64 | . 1 2 . . 2 2 4 . 4 2 3 2 . . 6 2 . 5 2 18 . 9 . Burn 10 | . . . . . . 1 2 . . . 2 2 . . 3 . . . . . . . . Destroy 30 | . 1 . . . . . . . 4 2 . . . . . . . . 1 15 . 7 . Blast 18 | . . 2 . . 2 1 2 . . . . . . . 1 2 . 4 1 3 . . . Smash 6 | . . . . . . . . . . . 1 . . . 2 . . 1 . . . 2 . Melee Attacks 158 | . . . . . . . . 22 1 1 23 . . . 10 49 6 1 12 5 . 28 . Impact 141 | . . . . . . . . 5 1 1 23 . . . 10 49 6 1 12 5 . 28 . Slashing 17 | . . . . . . . . 17 . . . . . . . . . . . . . . . Piercing . | . . . . . . . . . . . . . . . . . . . . . . . . Sneak Attacks 10 | . . . . . . . . . . . 2 . . . . 1 . . 2 3 . 2 . Combat Hostiles . | . . . . . . . . . . . . . . . . . . . . . . . . Follow-up Attacks . | . . . . . . . . . . . . . . . . . . . . . . . . Damage Inflicted 24849 | 28 538 111 . 194 910 1875 592 974 1944 557 1609 1939 364 . 2159 2233 . 3316 1144 2247 385 1624 106 Guns 9927 | 28 527 . . . 145 815 430 497 1159 241 676 1066 200 . 541 920 . 1169 269 161 . 977 106 Cannons 8645 | . . 111 . 20 765 347 162 451 . 316 765 873 164 . 765 751 . 1415 715 786 . 239 . Explosions 4058 | . . . . 174 . 713 . . 785 . . . . . . 315 . 649 . 1037 385 . . Melee 2202 | . . . . . . . . 26 . . 168 . . . 853 247 . 83 160 263 . 402 . Ramming 17 | . 11 . . . . . . . . . . . . . . . . . . . . 6 . Kinetic 10909 | 28 426 111 . 20 723 347 162 451 975 557 927 873 164 . 669 702 . 1146 878 936 . 774 40 Thermal 7475 | . 101 . . . 62 892 420 261 333 . 514 1066 200 . 541 969 . 1502 106 . . 442 66 Explosive 2496 | . . . . 174 . . . . . . . . . . . 315 . 585 . 1037 385 . . Electromagnetic 1750 | . . . . . 125 636 10 236 636 . . . . . 96 . . . . 11 . . . Impact 2202 | . . . . . . . . 26 . . 168 . . . 853 247 . 83 160 263 . 402 . Slashing . | . . . . . . . . . . . . . . . . . . . . . . . . Piercing . | . . . . . . . . . . . . . . . . . . . . . . . . Highest Corruption 25 | . . . . . . 1 1 2 4 4 2 6 6 6 10 4 . . . . . 25 25 Average Corruption 3 | . . . . . . 1 1 1 2 4 2 2 6 6 7 2 . . . . . 12 25 Corruption Purged . | . . . . . . . . . . . . . . . . . . . . . . . . Corruption Blocked . | . . . . . . . . . . . . . . . . . . . . . . . . Effects 140 | . . . . . . 8 . 16 7 5 13 22 11 3 28 18 . . . . . 7 2 Message Errors 38 | . . . . . . 3 . 7 1 1 5 5 1 2 4 6 . . . . . 2 1 Matter Fused 25 | . . . . . . 2 . 2 1 2 4 4 2 . 3 2 . . . . . 3 . Heat Flow Errors 19 | . . . . . . . . 1 . . 1 1 4 . 7 5 . . . . . . . Energy Discharges 15 | . . . . . . 1 . 1 . . . 5 1 1 3 1 . . . . . 1 1 Parts Rejected 3 | . . . . . . . . 1 . . . . 1 . . 1 . . . . . . . Parts Fused 2 | . . . . . . . . . 1 . . . 1 . . . . . . . . . . Data Loss (minor) 14 | . . . . . . . . 2 1 . 1 1 1 . 5 2 . . . . . 1 . Data Loss (major) 6 | . . . . . . 2 . . . . . 1 . . 3 . . . . . . . . Misfires 11 | . . . . . . . . 2 2 2 . 3 . . 1 1 . . . . . . . Alerts 1 | . . . . . . . . . . . . . . . 1 . . . . . . . . Weapon Failures 6 | . . . . . . . . . 1 . 2 2 . . 1 . . . . . . . . Overload Shots 16 | . . . . . . . . . . . 3 . . . 3 6 . 4 . . . . . Effects 1 | . . . . . . . . . . . . . . . . 1 . . . . . . . Energy Bleed 1 | . . . . . . . . . . . . . . . . 1 . . . . . . . Overflow Damage 1622 | . . . . 15 . 11 . . 21 . 152 . . . 706 69 . 88 114 253 . 193 . Projectiles 195 | . . . . . . 9 . . . . . . . . 83 55 . . 24 24 . . . Explosions 57 | . . . . 15 . 2 . . 21 . . . . . . 14 . 5 . . . . . Melee 1370 | . . . . . . . . . . . 152 . . . 623 . . 83 90 229 . 193 . Knockbacks 98 | . . 2 . . 3 7 3 10 . 4 20 13 3 . 10 4 . . 6 8 . 5 . Impact 4 | . . . . . . . . . . . 1 . . . 1 . . . 1 . . 1 . Kinetic 87 | . . 2 . . 3 7 3 9 . 4 17 12 3 . 8 4 . . 5 6 . 4 . Secondary 7 | . . . . . . . . 1 . . 2 1 . . 1 . . . . 2 . . . Self-Inflicted Damage 261 | . . . . . . 119 . . 25 . . . . . . . . 19 . 96 . 2 . Shots 8 | . . . . . . 4 . . 1 . . . . . . . . 1 . 2 . . . Rammed 5 | . 1 . . . . . . . . . . . . . . . . . . . . 4 . Targets Rammed 6 | . 2 . . . . . . . . . . . . . . . . . . . . 4 . Kicked . | . . . . . . . . . . . . . . . . . . . . . . . . Crushed 1 | . 1 . . . . . . . . . . . . . . . . . . . . . . Highest Temperature 670 | . 103 57 . 6 120 363 318 155 32 108 201 280 230 . 399 384 . 670 4 66 . 502 114 Average Temperature 102 | . 27 37 . 4 30 122 102 31 13 58 101 103 53 . 166 113 . 134 4 23 . 176 57 Received Heat Transfer 3648 | . 222 57 . 6 132 423 135 30 486 270 198 102 162 . 279 47 . 159 63 304 . 528 45 Effects 15 | . . . . . . 2 2 . . . . . . . 2 2 . 3 . . . 4 . Shutdowns 5 | . . . . . . . . . . . . . . . 2 1 . 1 . . . 1 . Interference 5 | . . . . . . 1 2 . . . . . . . . 1 . 1 . . . . . Matter Decay 2 | . . . . . . 1 . . . . . . . . . . . . . . . 1 . Damage (minor) 1 | . . . . . . . . . . . . . . . . . . 1 . . . . . Damage (major) 2 | . . . . . . . . . . . . . . . . . . . . . . 2 . Siege Activations . | . . . . . . . . . . . . . . . . . . . . . . . . Martial Activations . | . . . . . . . . . . . . . . . . . . . . . . . . Shielding Activations 2 | . . . . . . . . . . . . . . . . . . . 2 . . . . Total Turns 49 | . . . . . . . . . . . . . . . . . . . 49 . . . . Longest Duration 48 | . . . . . . . . . . . . . . . . . . . 48 . . . . Robots Disrupted 3 | . . . . . 2 . . . 1 . . . . . . . . . . . . . . Combat Hostiles 2 | . . . . . 1 . . . 1 . . . . . . . . . . . . . . Robots Corrupted 17 | . . . . . . . . . . . 1 . . . 11 . . . 2 3 . . . Combat Hostiles . | . . . . . . . . . . . . . . . . . . . . . . . . Parts Fried 26 | . . . . . . . . 2 2 . 2 . . . 9 . . 1 5 5 . . . Impact Corruptions 79 | . . . . . . . . . . . 5 . . . 54 . . 1 3 12 . 4 . Robots Melted 3 | . . . . . . . . . . . . . . . 1 2 . . . . . . . Combat Hostiles 3 | . . . . . . . . . . . . . . . 1 2 . . . . . . . Parts Melted 13 | . 1 . . . . 1 1 1 . . 1 2 . . 1 3 . . . 1 . 1 . Heat Transferred 11509 | . 225 . . . 111 1499 925 555 398 . 1070 2275 385 . 1183 781 . 1249 111 . . 592 150 Parts Sabotaged . | . . . . . . . . . . . . . . . . . . . . . . . . Parts Stolen . | . . . . . . . . . . . . . . . . . . . . . . . . Parts Stripped . | . . . . . . . . . . . . . . . . . . . . . . . . Power Chain Reactions 6 | . . . . . . 2 . . 3 . . . . . . . . 1 . . . . . Alert | -11 -10 -10 -10 -9 -8 -8 -8 -7 -7 -7 -6 -6 -6 -6 -5 -5 -4 -4 -4 -4 -4 -3 -3 ------- Run | Yrd Mat Min Exi Min Mat Gar Mat Fac Gar Fac Fac Low Low Dat Pro Fac Fac Gar Fac Upp Upp Res Gar Maximum Alert Level 3 | . . . . . 1 3 2 . 2 1 . . . . . . . 1 . . . . . Low Security (%) 82 | 100 100 100 . 100 64 11 . 100 47 . 100 . . . . 100 100 71 100 . . 100 100 Level 1 10 | . . . . . 35 8 67 . 31 100 . . . . . . . 28 . . . . . Level 2 6 | . . . . . . 63 32 . 21 . . . . . . . . . . . . . . Level 3 1 | . . . . . . 16 . . . . . . . . . . . . . . . . . Level 4 . | . . . . . . . . . . . . . . . . . . . . . . . . Level 5 . | . . . . . . . . . . . . . . . . . . . . . . . . High Security . | . . . . . . . . . . . . . . . . . . . . . . . . Max Security . | . . . . . . . . . . . . . . . . . . . . . . . . Peak Influence 837 | 5 135 76 . 74 241 837 448 182 532 350 140 . . . . 142 51 313 178 . . 88 50 Initial 407 | . . 36 . . 26 142 407 182 35 279 140 . . . . 56 51 . 163 . . 33 . Average 114 | . 39 55 . 2 158 537 386 65 238 291 30 . . . . 51 9 156 73 . . 8 43 Influence Increases 6079 | 5 358 50 . 120 553 785 206 370 587 168 290 150 189 . 393 424 12 423 220 290 90 346 50 Destroy 0b10 Robot/C 3500 | . 260 40 . 80 320 420 120 180 320 120 140 140 140 . 320 180 . 220 80 260 80 80 . Destroy 0b10 Robot/NC 200 | 5 10 . . . 35 5 5 35 . 5 40 . . . 5 20 . 5 15 . . 15 . Destroy Leader 604 | . 54 10 . 10 102 20 60 36 30 20 40 10 20 . 40 42 . 30 20 30 10 20 . Allied During Kill 105 | . . . . 11 34 7 . . . . 11 . 14 . 28 . . . . . . . . Successful Hack 220 | . 19 . . . 17 . 5 69 . 7 39 . . . . 24 . . 12 . . 28 . Disable Machine 120 | . . . . . . 45 . . 15 15 . . . . . . . 15 30 . . . . Anti-Garrison Action 350 | . . . . . . 200 . . 50 . . . . . . . . 50 . . . . 50 Destroy Structure 545 | . . . . 19 . 88 1 20 37 1 20 . . . . 158 12 103 48 . . 38 . Partial Spotted 45 | . . . . . . . . 15 . . . . . . . . . . 15 . . 15 . Lose Combat Pursuer 390 | . 15 . . . 45 . 15 15 135 . . . 15 . . . . . . . . 150 . Influence Decreases 6029 | 5 263 109 36 52 402 167 640 723 105 413 551 176 189 . 304 408 117 110 533 290 40 396 . Entered New Map 1544 | . . 59 36 . 42 77 430 221 15 253 147 10 . . . 33 54 . 150 . . 17 . Time Decay 3352 | 5 253 40 . 32 330 . 190 465 . 140 304 118 119 . 182 355 63 . 283 260 40 173 . Lost Part 853 | . 10 10 . 20 10 30 20 37 90 20 20 48 10 . 62 20 . 110 100 30 . 206 . Lost Ally 280 | . . . . . 20 60 . . . . 80 . 60 . 60 . . . . . . . . Squads Dispatched 31 | . 2 . . . 2 . 2 4 . 2 3 . . . 1 5 . . 4 . . 6 . Investigation 6 | . 1 . . . . . 1 . . . . . . . . 1 . . 1 . . 2 . Extermination 13 | . . . . . . . . 3 . 1 1 . . . . 4 . . 2 . . 2 . Reinforcement 9 | . 1 . . . 1 . 1 1 . 1 1 . . . . . . . 1 . . 2 . Assault 1 | . . . . . . . . . . . . . . . 1 . . . . . . . . Garrison 2 | . . . . . 1 . . . . . 1 . . . . . . . . . . . . Intercept . | . . . . . . . . . . . . . . . . . . . . . . . . Searches Triggered . | . . . . . . . . . . . . . . . . . . . . . . . . Construction Impeded 1 | . . . . . . . . . . . . . . . . . . . 1 . . . . Haulers Reinforced . | . . . . . . . . . . . . . . . . . . . . . . . . Active Scanning Responses . | . . . . . . . . . . . . . . . . . . . . . . . . Cargo Convoy Interrupts . | . . . . . . . . . . . . . . . . . . . . . . . . Stealth | -11 -10 -10 -10 -9 -8 -8 -8 -7 -7 -7 -6 -6 -6 -6 -5 -5 -4 -4 -4 -4 -4 -3 -3 --------- Run | Yrd Mat Min Exi Min Mat Gar Mat Fac Gar Fac Fac Low Low Dat Pro Fac Fac Gar Fac Upp Upp Res Gar Distress Signals 8 | . 1 . . . 3 . . 1 . . 3 . . . . . . . . . . . . Communications Jammed . | . . . . . . . . . . . . . . . . . . . . . . . . Distress Signals . | . . . . . . . . . . . . . . . . . . . . . . . . Times Spotted 243 | . 18 2 . 4 19 22 7 14 20 7 12 9 11 . 20 20 . 12 5 14 4 19 4 Peak Tracking Total 12 | . 4 2 . 3 5 7 4 4 12 6 4 4 7 . 8 4 . 6 2 7 4 9 2 Tactical Retreats 13 | . 1 . . . 1 . 1 1 6 . . . 1 . . . . . . . . 2 . Traps | -11 -10 -10 -10 -9 -8 -8 -8 -7 -7 -7 -6 -6 -6 -6 -5 -5 -4 -4 -4 -4 -4 -3 -3 ------- Run | Yrd Mat Min Exi Min Mat Gar Mat Fac Gar Fac Fac Low Low Dat Pro Fac Fac Gar Fac Upp Upp Res Gar Traps Triggered 10 | . 2 . . . . 3 1 1 1 . . . . . . 1 . 1 . . . . . Indirectly 2 | . . . . . . 1 . . 1 . . . . . . . . . . . . . . Trap Hack Attempts . | . . . . . . . . . . . . . . . . . . . . . . . . Triggered . | . . . . . . . . . . . . . . . . . . . . . . . . Disarmed . | . . . . . . . . . . . . . . . . . . . . . . . . Reprogrammed . | . . . . . . . . . . . . . . . . . . . . . . . . Reused . | . . . . . . . . . . . . . . . . . . . . . . . . Traps Extracted . | . . . . . . . . . . . . . . . . . . . . . . . . Installed . | . . . . . . . . . . . . . . . . . . . . . . . . Triggered . | . . . . . . . . . . . . . . . . . . . . . . . . Machines | -11 -10 -10 -10 -9 -8 -8 -8 -7 -7 -7 -6 -6 -6 -6 -5 -5 -4 -4 -4 -4 -4 -3 -3 ---------- Run | Yrd Mat Min Exi Min Mat Gar Mat Fac Gar Fac Fac Low Low Dat Pro Fac Fac Gar Fac Upp Upp Res Gar Machines Disabled 18 | . . . . . . 8 . . 2 1 . 1 . . 1 . . 2 2 1 . . . Max in Single Turn 2 | . . . . . . 2 . . 1 1 . 1 . . . . . 1 1 1 . . . Garrison Relay 5 | . . . . . . 3 . . 1 . . . . . . . . 1 . . . . . Phase Generator 1 | . . . . . . 1 . . . . . . . . . . . . . . . . . Machines Repaired . | . . . . . . . . . . . . . . . . . . . . . . . . Machines Dismantled . | . . . . . . . . . . . . . . . . . . . . . . . . Machines Sabotaged . | . . . . . . . . . . . . . . . . . . . . . . . . Overloaded Fab Kills . | . . . . . . . . . . . . . . . . . . . . . . . . Hacking | -11 -10 -10 -10 -9 -8 -8 -8 -7 -7 -7 -6 -6 -6 -6 -5 -5 -4 -4 -4 -4 -4 -3 -3 --------- Run | Yrd Mat Min Exi Min Mat Gar Mat Fac Gar Fac Fac Low Low Dat Pro Fac Fac Gar Fac Upp Upp Res Gar Machines Accessed 58 | . 5 . 1 . 2 3 3 10 . 1 8 1 . 4 . 7 1 . 3 1 . 7 1 Terminals 34 | . 5 . . . 1 3 2 6 . 1 6 . . . . 4 . . . . . 5 1 Fabricators 4 | . . . . . . . . 1 . . 2 . . . . 1 . . . . . . . Repair Stations . | . . . . . . . . . . . . . . . . . . . . . . . . Recycling Units 4 | . . . . . . . 1 . . . . . . . . 1 . . 2 . . . . Scanalyzers 4 | . . . . . . . . 1 . . . . . . . 1 . . 1 . . 1 . Garrison Access 5 | . . . . . 1 . . 2 . . . . . . . . 1 . . . . 1 . Total Hacks 136 | . 13 . 1 . 3 4 6 19 . 4 16 1 . 29 . 17 1 . 7 1 . 12 2 Successful 80 | . 7 . 1 . 2 1 5 10 . 1 9 1 . 29 . 8 1 . 1 1 . 3 . Failed 55 | . 6 . . . 1 3 1 9 . 3 7 . . . . 8 . . 6 . . 9 2 Catastrophic 15 | . 2 . . . . 2 . 2 . . 1 . . . . 1 . . 1 . . 4 2 Database Lockouts 1 | . . . . . . . . . . . . . . . . 1 . . . . . . . Manual 33 | . 11 . 1 . 1 . 2 5 . 3 7 . . . . 2 . . . . . 1 . Terminals 68 | . 13 . . . 2 4 4 11 . 4 11 . . . . 8 . . . . . 9 2 Fabricators 9 | . . . . . . . . 1 . . 5 . . . . 3 . . . . . . . Repair Stations . | . . . . . . . . . . . . . . . . . . . . . . . . Recycling Units 8 | . . . . . . . 2 . . . . . . . . 2 . . 4 . . . . Scanalyzers 11 | . . . . . . . . 2 . . . . . . . 4 . . 3 . . 2 . Garrison Access 8 | . . . . . 1 . . 5 . . . . . . . . 1 . . . . 1 . Terminal Hacks 55 | . 4 . 1 . . 1 3 5 . 1 3 1 . 29 . 4 . . . 1 . 2 . Record 12 | . . . . . . . . . . . 1 . . 11 . . . . . . . . . Part Schematic 8 | . . . . . . . . . . . . . . 8 . . . . . . . . . Robot Schematic 7 | . . . . . . . . . . . . . . 7 . . . . . . . . . Robot Analysis 1 | . 1 . . . . . . . . . . . . . . . . . . . . . . Prototype ID Bank 7 | . 2 . . . . . 1 1 . . . . . 3 . . . . . . . . . Open Door 2 | . . . . . . . . . . . . 1 . . . . . . . 1 . . . Open DSF 1 | . . . . . . . . 1 . . . . . . . . . . . . . . . Branch Access Points 1 | . . . . . . . . . . . 1 . . . . . . . . . . . . Terminal Index 1 | . . . . . . . . . . . . . . . . 1 . . . . . . . Alert Level 5 | . . . . . . . 2 1 . . 1 . . . . 1 . . . . . . . Locate Traps 2 | . . . . . . . . . . . . . . . . 1 . . . . . 1 . Dispatch Records 2 | . . . . . . . . . . . . . . . . 1 . . . . . 1 . Registered Components 2 | . 1 . . . . . . . . 1 . . . . . . . . . . . . . Zone Layout 2 | . . . . . . . . 2 . . . . . . . . . . . . . . . Garrison Registry 1 | . . . . . . 1 . . . . . . . . . . . . . . . . . Proto ID Catalog 1 | . . . 1 . . . . . . . . . . . . . . . . . . . . Fabricator Hacks 7 | . . . . . . . . 1 . . 4 . . . . 2 . . . . . . . Network Status 3 | . . . . . . . . 1 . . 2 . . . . . . . . . . . . Load Schematic 1 | . . . . . . . . . . . . . . . . 1 . . . . . . . Build 3 | . . . . . . . . . . . 2 . . . . 1 . . . . . . . Repair Station Hacks . | . . . . . . . . . . . . . . . . . . . . . . . . Recycling Unit Hacks 1 | . . . . . . . 1 . . . . . . . . . . . . . . . . Retrieve Components 1 | . . . . . . . 1 . . . . . . . . . . . . . . . . Scanalyzer 4 | . . . . . . . . 2 . . . . . . . 1 . . 1 . . . . Retrieve Study 4 | . . . . . . . . 2 . . . . . . . 1 . . 1 . . . . Garrison Access Hacks 4 | . . . . . 1 . . 1 . . . . . . . . 1 . . . . 1 . Unlock Access 4 | . . . . . 1 . . 1 . . . . . . . . 1 . . . . 1 . Unauthorized Hacks 9 | . 3 . . . 1 . 1 1 . . 2 . . . . 1 . . . . . . . Terminals 9 | . 3 . . . 1 . 1 1 . . 2 . . . . 1 . . . . . . . Assimilate 1 | . . . . . . . . . . . 1 . . . . . . . . . . . . Botnet 8 | . 3 . . . 1 . 1 1 . . 1 . . . . 1 . . . . . . . Fabricators . | . . . . . . . . . . . . . . . . . . . . . . . . Repair Stations . | . . . . . . . . . . . . . . . . . . . . . . . . Recycling Units . | . . . . . . . . . . . . . . . . . . . . . . . . Scanalyzers . | . . . . . . . . . . . . . . . . . . . . . . . . Garrison Access . | . . . . . . . . . . . . . . . . . . . . . . . . Data Cores Recovered . | . . . . . . . . . . . . . . . . . . . . . . . . Used . | . . . . . . . . . . . . . . . . . . . . . . . . Hacking Detections 45 | . 5 . . . 1 2 3 9 . 1 6 . . . . 6 1 . 3 . . 7 1 Full Trace Events 5 | . . . . . . . . . . . . . . . . 1 . . 1 . . 2 1 Feedback Events . | . . . . . . . . . . . . . . . . . . . . . . . . Feedback Blocked . | . . . . . . . . . . . . . . . . . . . . . . . . Robot Schematics Acquired 7 | . . . . . . . . . . . . . . 7 . . . . . . . . . Robots Built 4 | . . . . . . . . . . . 4 . . . . . . . . . . . . Authchips . | . . . . . . . . . . . . . . . . . . . . . . . . Time 81 | . . . . . . . . . . . 81 . . . . . . . . . . . . Total Robot Build Rating 4 | . . . . . . . . . . . 4 . . . . . . . . . . . . Part Schematics Acquired 8 | . . . . . . . . . . . . . . 8 . . . . . . . . . Parts Built 3 | . . . . . . . . . . . 2 . . . . 1 . . . . . . . Authchips . | . . . . . . . . . . . . . . . . . . . . . . . . Time 234 | . . . . . . . . . . . 117 . . . . 117 . . . . . . . Total Part Build Rating 21 | . . . . . . . . . . . 14 . . . . 7 . . . . . . . Part Studies Acquired 4 | . . . . . . . . 2 . . . . . . . 1 . . 1 . . . . Parts Repaired . | . . . . . . . . . . . . . . . . . . . . . . . . Time . | . . . . . . . . . . . . . . . . . . . . . . . . Parts Recycled . | . . . . . . . . . . . . . . . . . . . . . . . . Recycled Matter . | . . . . . . . . . . . . . . . . . . . . . . . . Retrieved Matter . | . . . . . . . . . . . . . . . . . . . . . . . . Retrieved Components 2 | . . . . . . . 2 . . . . . . . . . . . . . . . . Parts Scanalyzed . | . . . . . . . . . . . . . . . . . . . . . . . . Part Schematics Acquired . | . . . . . . . . . . . . . . . . . . . . . . . . Parts Damaged . | . . . . . . . . . . . . . . . . . . . . . . . . Bothacking | -11 -10 -10 -10 -9 -8 -8 -8 -7 -7 -7 -6 -6 -6 -6 -5 -5 -4 -4 -4 -4 -4 -3 -3 ------------ Run | Yrd Mat Min Exi Min Mat Gar Mat Fac Gar Fac Fac Low Low Dat Pro Fac Fac Gar Fac Upp Upp Res Gar Used RIF Installer . | . . . . . . . . . . . . . . . . . . . . . . . . Robots Hacked . | . . . . . . . . . . . . . . . . . . . . . . . . Non-combat . | . . . . . . . . . . . . . . . . . . . . . . . . Combat . | . . . . . . . . . . . . . . . . . . . . . . . . Robot Hacks Applied . | . . . . . . . . . . . . . . . . . . . . . . . . Relay Couplers Released 27 | . . . . . . 17 . . 5 . . . . . . . . 5 . . . . . Machine Destruction 24 | . . . . . . 14 . . 5 . . . . . . . . 5 . . . . . Programmers 3 | . . . . . . 3 . . . . . . . . . . . . . . . . . Fabnet Peak Effective % . | . . . . . . . . . . . . . . . . . . . . . . . . Robots Rewired 12 | . . . . . . 3 . . . . 4 3 . . 2 . . . . . . . . Allies Hacked . | . . . . . . . . . . . . . . . . . . . . . . . . Hacks Repelled . | . . . . . . . . . . . . . . . . . . . . . . . . Allies | -11 -10 -10 -10 -9 -8 -8 -8 -7 -7 -7 -6 -6 -6 -6 -5 -5 -4 -4 -4 -4 -4 -3 -3 -------- Run | Yrd Mat Min Exi Min Mat Gar Mat Fac Gar Fac Fac Low Low Dat Pro Fac Fac Gar Fac Upp Upp Res Gar Total Allies 20 | . . . . 3 . 3 . . . . 8 3 . . 3 . . . . . . . . Largest Group 6 | . . . . 3 3 3 . . . . 6 3 3 . 2 . . . . . . . . Highest-Rated Group 145 | . . . . 40 40 15 . . . . 119 90 90 . 145 . . . . . . . . Highest-Rated Ally 96 | . . . . 16 16 5 . . . . 32 30 30 . 96 . . . . . . . . Initial Warlord ECA Mod 8 | . . . . . . . 6 5 5 8 7 7 7 7 6 6 2 2 3 3 3 2 2 Warlord Squad Rendezvous 3 | . . . . . . . . . . . . . . . . 3 . . . . . . . Infantry 1 | . . . . . . . . . . . . . . . . 1 . . . . . . . Pyro 1 | . . . . . . . . . . . . . . . . 1 . . . . . . . Chimera 1 | . . . . . . . . . . . . . . . . 1 . . . . . . . Total Orders 3 | . . . . . . . . . . . 2 . . . . . . . . . . 1 . EXPLORE 2 | . . . . . . . . . . . 1 . . . . . . . . . . 1 . RETURN 1 | . . . . . . . . . . . 1 . . . . . . . . . . . . Ally Attacks 143 | . . . . 10 44 36 . . . . 10 . 8 . 35 . . . . . . . . Total Damage 1921 | . . . . 25 344 224 . . . . 273 . 158 . 897 . . . . . . . . Kills 20 | . . . . 1 9 2 . . . . 2 . 1 . 5 . . . . . . . . Allies Corrupted . | . . . . . . . . . . . . . . . . . . . . . . . . Allies Melted . | . . . . . . . . . . . . . . . . . . . . . . . . Intel | -11 -10 -10 -10 -9 -8 -8 -8 -7 -7 -7 -6 -6 -6 -6 -5 -5 -4 -4 -4 -4 -4 -3 -3 ------- Run | Yrd Mat Min Exi Min Mat Gar Mat Fac Gar Fac Fac Low Low Dat Pro Fac Fac Gar Fac Upp Upp Res Gar Active Infowar (turns) 12810 | 15 876 81 238 898 312 . . . . . 67 1173 420 116 793 1899 345 715 768 2360 573 1161 . Optics 10702 | . . . . . 312 . . . . . 67 1173 420 116 793 1899 345 715 768 2360 573 1161 . Traps 2058 | . . . . . . . . . . . . . . . . . . . 565 1493 . . . Seismic 2108 | 15 876 81 238 898 . . . . . . . . . . . . . . . . . . . Robot Analysis Total 1 | . 1 . . . . . . . . . . . . . . . . . . . . . . Derelict Logs Recovered 4 | . . . . . . . . . . . . 1 1 . . . . . . 1 1 . . Drone Launches 3 | . . . . . . . . . . . 1 . . . . . . . . . . 2 . Drone Recoveries 1 | . . . . . . . . . . . 1 . . . . . . . . . . . . Exploration | -11 -10 -10 -10 -9 -8 -8 -8 -7 -7 -7 -6 -6 -6 -6 -5 -5 -4 -4 -4 -4 -4 -3 -3 ------------- Run | Yrd Mat Min Exi Min Mat Gar Mat Fac Gar Fac Fac Low Low Dat Pro Fac Fac Gar Fac Upp Upp Res Gar Turns Passed 18509 | 82 876 81 238 925 746 921 385 1521 677 283 1231 1173 420 116 793 1899 345 715 768 2360 573 1283 98 Spaces Moved 8893 | 42 457 48 204 362 433 553 213 831 306 128 540 526 226 89 387 928 219 383 393 647 292 571 115 Core 138 | 4 . . . . . . . . . . . . . . . . . . . . . 28 106 Treads 518 | 38 457 10 . 4 . . . . . . . . . . . . . . . . . . 9 Legs 6326 | . . . . . 413 553 213 831 306 128 540 526 226 89 182 . 184 383 393 647 292 420 . Wheels 1911 | . . 38 204 358 20 . . . . . . . . . 205 928 35 . . . . 123 . Hover . | . . . . . . . . . . . . . . . . . . . . . . . . Flight . | . . . . . . . . . . . . . . . . . . . . . . . . Fastest Speed 50 | 50 160 115 115 100 100 130 130 126 125 125 122 120 120 120 112 112 112 120 117 116 190 50 50 Average Speed 138 | 149 160 134 115 115 128 130 130 135 131 157 154 184 166 124 150 112 118 120 121 146 190 144 66 Slowest Speed 400 | 160 160 240 115 240 200 130 130 200 200 193 193 193 190 190 400 112 120 120 124 190 190 190 240 Overloaded Moves . | . . . . . . . . . . . . . . . . . . . . . . . . Propulsion Burnouts . | . . . . . . . . . . . . . . . . . . . . . . . . Robots Hopped . | . . . . . . . . . . . . . . . . . . . . . . . . Potential Cave-ins . | . . . . . . . . . . . . . . . . . . . . . . . . Cave-ins Triggered 1 | . . . . . . . . . . . . . . . . . 1 . . . . . . Exploration Rate (%) 38 | 3 86 11 61 80 33 78 23 28 40 4 22 69 34 73 56 29 8 37 7 80 32 23 15 Regions Visited 23 Branch Regions 9 Pre-discovered Areas 3 | . . . . . . . . . . . . 2 . 1 . . . . . . . . . Known Exits Taken 6 | . . . . . 1 . . 1 . . 1 . 1 . . . 1 . . . . 1 . Unknown Exits Taken 14 | 1 1 1 1 1 . . 1 . . 1 . 1 . 1 1 1 . . 1 1 1 . . Scrap Searched 7 | . . . . 2 . . . . . . . 1 1 . 1 . . . . 1 1 . . Spaces Dug 123 | . . . . . . . . 19 . 1 20 . . . . 50 6 5 7 . . 15 . Terrain Destroyed 489 | . . . . 19 . 76 1 19 9 1 20 5 2 . 14 85 6 52 27 118 8 27 . Melee 111 | . . . . . . . . 19 . 1 20 . . . . 43 6 . 7 . . 15 . Projectile 112 | . . . . . . . 1 . . . . 5 2 . 14 23 . 21 20 14 . 12 . AOE 265 | . . . . 19 . 76 . . 8 . . . . . . 19 . 31 . 104 8 . . Terrain Rammed . | . . . . . . . . . . . . . . . . . . . . . . . . Walls Destroyed . | . . . . . . . . . . . . . . . . . . . . . . . . Machines Disabled . | . . . . . . . . . . . . . . . . . . . . . . . . Actions | -11 -10 -10 -10 -9 -8 -8 -8 -7 -7 -7 -6 -6 -6 -6 -5 -5 -4 -4 -4 -4 -4 -3 -3 --------- Run | Yrd Mat Min Exi Min Mat Gar Mat Fac Gar Fac Fac Low Low Dat Pro Fac Fac Gar Fac Upp Upp Res Gar Total 13696 | 54 529 54 208 863 544 661 285 1119 483 177 831 634 250 94 503 1628 294 544 600 1985 309 917 130 Wait 3557 | . 18 . . 495 32 37 44 185 107 25 169 36 7 . 13 568 56 84 148 1264 15 247 7 Move 8874 | 41 456 47 203 361 433 552 212 831 305 127 539 525 225 88 386 927 219 382 392 646 291 571 115 Hop . | . . . . . . . . . . . . . . . . . . . . . . . . Pick Up 108 | 4 5 . 4 . 11 . 9 14 4 3 9 3 1 . 5 9 2 9 6 7 . 3 . Fast Attach 76 | 7 . . . . 7 1 1 5 3 1 2 2 3 3 4 2 2 4 5 10 . 8 6 Attach 66 | . 2 1 . 2 2 3 2 3 6 1 2 3 1 . 8 6 2 7 3 6 . 5 1 Detach 11 | . . . . . 2 . . . . . . . 2 . 1 1 1 1 . 3 . . . Swap 113 | . 3 1 . 2 12 8 . 11 9 3 9 3 1 . 2 16 2 3 6 4 2 16 . Drop 73 | . 1 . 1 . 11 2 1 13 . 2 9 2 1 3 . 5 4 5 4 3 . 6 . Fire 556 | 2 42 5 . 3 34 47 16 35 48 14 34 44 9 . 48 37 . 46 24 37 1 29 1 Melee 158 | . . . . . . . . 22 1 1 23 . . . 10 49 6 1 12 5 . 28 . Ram 4 | . . . . . . . . . . . . . . . . . . . . . . 4 . Kick . | . . . . . . . . . . . . . . . . . . . . . . . . Crush 2 | . 2 . . . . . . . . . . . . . . . . . . . . . . Escape Stasis 10 | . . . . . . . . . . . . . . . . 8 . 2 . . . . . Rewire 88 | . . . . . . 11 . . . . 35 16 . . 26 . . . . . . . . Trap . | . . . . . . . . . . . . . . . . . . . . . . . . Miscellaneous . | . . . . . . . . . . . . . . . . . . . . . . . . Route ------- -11/Scrapyard -10/Materials (discovered 5 exits: [*Mat x2] / [*Min x2] / [*Sub]) -10/Mines -10/Exiles -9/Mines -8/Materials -8/Garrison (discovered 4 exits: *Mat x4) -8/Materials -7/Factory -7/Garrison -7/Factory -6/Factory (discovered 2 exits: *Low x2) -6/Lower Caves -6/Lower Caves -6/Data Miner -5/Proximity Caves -5/Factory -4/Factory (discovered 2 exits: *Res / Gar) -4/Garrison -4/Factory -4/Upper Caves -4/Upper Caves -3/Research (discovered 4 exits: Res / Arm / Tes / Gar) -3/Garrison History --------- Turn | Location | Event 44 | -11/Scrapyard | Discovered new exit (range 14) 83 | -11/Scrapyard | Entered Materials 190 | -10/Materials | Discovered new exit (range 9) 317 | -10/Materials | Build established: Mutant 485 | -10/Materials | Discovered new exit (range 6) 665 | -10/Materials | Discovered new exit (range 5) 897 | -10/Materials | Discovered new exit (range 6) 927 | -10/Materials | Discovered new exit (range 16) 959 | -10/Materials | Entered Mines 1031 | -10/Mines | Deemed a non-threat by the Exiles lab entrance 1031 | -10/Mines | Discovered new exit (range 5) 1040 | -10/Mines | Entered Exiles 1072 | -10/Exiles | Met 8R-AWN 1091 | -10/Exiles | Met EX-HEX 1122 | -10/Exiles | Met EX-BIN 1135 | -10/Exiles | Aligned with FarCom system 1137 | -10/Exiles | Given EX-Vault access code 1163 | -10/Exiles | Opened EX-Vault 1172 | -10/Exiles | Found Skeleton Box 1196 | -10/Exiles | Warned to stay clear of 0b10 Research branches 1228 | -10/Exiles | Met EX-DEC 1269 | -10/Exiles | Discovered new exit (range 10) 1278 | -10/Exiles | Left Exiles lab with Skeleton Box 1278 | -10/Exiles | Entered Mines 1280 | -9/Mines | Met a Derelict bent on vengeance 2151 | -9/Mines | Assisted by bots powering up and referring to "LRC-V3" 2190 | -9/Mines | Discovered new exit (range 8) 2203 | -9/Mines | Entered Materials 2203 | -8/Materials | Accompanied by 3 allies 2203 | -8/Materials | Evolved 4 slots: Propulsion x1, Utility x2, Weapon x1 2500 | -8/Materials | Build established: Skirmisher 2681 | -8/Materials | Garrison activated, responded to threat 2949 | -8/Materials | Identified exit to Garrison 2949 | -8/Materials | Entered Garrison 3053 | -8/Garrison | Triggered checkpoint 3131 | -8/Garrison | Triggered checkpoint 3158 | -8/Garrison | Discovered new exit (range 6) 3241 | -8/Garrison | Triggered checkpoint 3391 | -8/Garrison | Lost 3 parts (2n1u) 3398 | -8/Garrison | Destroyed 7 combat bots 3419 | -8/Garrison | Triggered checkpoint 3471 | -8/Garrison | Triggered checkpoint 3484 | -8/Garrison | Garrison Relay disabled 3518 | -8/Garrison | Discovered new exit (range 12) 3518 | -8/Garrison | Discovered new exit (range 43) 3518 | -8/Garrison | Discovered new exit (range 49) 3518 | -8/Garrison | Discovered new exit (range 73) 3830 | -8/Garrison | Phase Generator disabled 3855 | -8/Garrison | Triggered checkpoint 3870 | -8/Garrison | Entered Materials 4177 | -8/Materials | Discovered new exit (range 8) 4255 | -8/Materials | Entered Factory 4255 | -7/Factory | Evolved 2 slots: Propulsion x1, Utility x1 4853 | -7/Factory | Build established: Tank 5640 | -7/Factory | Build established: Mutant 5776 | -7/Factory | Identified exit to Garrison 5776 | -7/Factory | Entered Garrison 5825 | -7/Garrison | Garrison Relay disabled 5826 | -7/Garrison | Triggered checkpoint 5964 | -7/Garrison | Triggered checkpoint 6166 | -7/Garrison | Triggered checkpoint 6187 | -7/Garrison | Triggered checkpoint 6260 | -7/Garrison | Build established: Skirmisher 6339 | -7/Garrison | Lost 9 parts (1p3n1u4w) 6348 | -7/Garrison | Destroyed 11 combat bots 6433 | -7/Garrison | Discovered new exit (range 11) 6453 | -7/Garrison | Entered Factory 6707 | -7/Factory | Discovered new exit (range 6) 6736 | -7/Factory | Entered another Factory area 6736 | -6/Factory | Evolved 2 slots: Utility x1, Weapon x1 6902 | -6/Factory | Build established: Scavenger-Skirmisher 7033 | -6/Factory | Garrison activated, responded to threat 7154 | -6/Factory | Fabricated K-01 Serf? 7455 | -6/Factory | Lost 5 allies 7569 | -6/Factory | Identified exit to Lower Caves 7714 | -6/Factory | Fabricated Centrium Wheel (x2) 7967 | -6/Factory | Entered Lower Caves 7980 | -6/Lower Caves | Met a Warlord Commander 7981 | -6/Lower Caves | Learned location of Warlord (-4) 7982 | -6/Lower Caves | Warlord Commander delivered Encrypted Comm Array 7982 | -6/Lower Caves | Found Encrypted Comm Array 8062 | -6/Lower Caves | Build established: Scavenger-Tank 8359 | -6/Lower Caves | Learned location of Extension (-5) 8842 | -6/Lower Caves | Attacked by a delusional Derelict stockpiling Unaware 8888 | -6/Lower Caves | Lost 3 parts (1p1n1w) 8986 | -6/Lower Caves | Discovered new exit (range 17) 8989 | -6/Lower Caves | Encountered a Warlord checkpoint 9140 | -6/Lower Caves | Entered another Lower Caves area 9140 | -6/Lower Caves | Accompanied by 3 allies 9189 | -6/Lower Caves | Lost 3 allies 9416 | -6/Lower Caves | Identified exit to Data Miner 9555 | -6/Lower Caves | Encountered a Warlord checkpoint 9560 | -6/Lower Caves | Entered Data Miner 9562 | -6/Data Miner | Discovered new exit (range 6) 9578 | -6/Data Miner | Met Data Miner 9605 | -6/Data Miner | Learned location of Section 7 (-2) 9605 | -6/Data Miner | Acquired the access code to Warlord's prototype stash 9623 | -6/Data Miner | Received God Mode back door access code from Data Miner 9676 | -6/Data Miner | Entered Proximity Caves 10070 | -5/Proximity Caves | Attracted the attention of an 0b10 outpost 10088 | -5/Proximity Caves | Core integrity fell below 50% 10122 | -5/Proximity Caves | System corruption reached 10% 10159 | -5/Proximity Caves | Lost 8 parts (1p3n1u3w) 10192 | -5/Proximity Caves | Escorted by Enhanced Grunt 10452 | -5/Proximity Caves | Discovered new exit (range 9) 10469 | -5/Proximity Caves | Entered Factory 10469 | -5/Factory | Evolved 2 slots: Power x1, Utility x1 10484 | -5/Factory | Central database locked down 10764 | -5/Factory | Joined by Warlord Pyro squad 10880 | -5/Factory | Build established: Scavenger-Skirmisher 10905 | -5/Factory | Discovered new exit (range 8) 11087 | -5/Factory | Fabricated Micro-nuke Launcher (x1) 11558 | -5/Factory | Joined by Warlord Chimera squad 11726 | -5/Factory | Joined by Warlord Infantry squad 12368 | -5/Factory | Entered another Factory area 12368 | -4/Factory | Evolved 2 slots: Propulsion x1, Utility x1 12452 | -4/Factory | Build established: Scavenger-Tank 12566 | -4/Factory | Crushed by falling debris 12618 | -4/Factory | Discovered new exit (range 9) 12713 | -4/Factory | Identified exit to Garrison 12713 | -4/Factory | Entered Garrison 12813 | -4/Garrison | Triggered checkpoint 12922 | -4/Garrison | Garrison Relay disabled 13013 | -4/Garrison | Spotted B-86 Titan 13111 | -4/Garrison | Lost 4 parts (1p1u2w) 13161 | -4/Garrison | Destroyed B-86 Titan 13223 | -4/Garrison | Triggered checkpoint 13223 | -4/Garrison | Triggered checkpoint 13227 | -4/Garrison | Triggered checkpoint 13271 | -4/Garrison | Lost 6 parts (3u3w) 13417 | -4/Garrison | Discovered new exit (range 10) 13428 | -4/Garrison | Entered Factory 13571 | -4/Factory | Discovered new exit (range 14) 13617 | -4/Factory | Build established: Scavenger-Skirmisher 13921 | -4/Factory | Build established: Scavenger-Assassin 14013 | -4/Factory | Lost 8 parts (1p4n3u) 14196 | -4/Factory | Entered Upper Caves 14224 | -4/Upper Caves | Spotted B-86 Titan 14249 | -4/Upper Caves | Attracted the attention of an 0b10 checkpoint 14271 | -4/Upper Caves | Destroyed B-86 Titan 14471 | -4/Upper Caves | Learned 12 Research zone layouts 14486 | -4/Upper Caves | Build established: Skirmisher 15631 | -4/Upper Caves | Core integrity fell below 50% 15683 | -4/Upper Caves | Lost 6 parts (3n1u2w) 16289 | -4/Upper Caves | Attacked by a delusional Derelict stockpiling parts 16349 | -4/Upper Caves | Build established: Scavenger-Tank 16474 | -4/Upper Caves | Discovered new exit (range 17) 16556 | -4/Upper Caves | Entered another Upper Caves area 17110 | -4/Upper Caves | Discovered new exit (range 10) 17116 | -4/Upper Caves | Learned location of 1 exit from Research 17129 | -4/Upper Caves | Entered Research 17129 | -3/Research | Evolved 2 slots: Propulsion x1, Utility x1 17130 | -3/Research | Identified exit to Armory 17131 | -3/Research | Identified exit to Research 17131 | -3/Research | Identified exit to Testing 18152 | -3/Research | Lost 3 parts (1n2u) 18244 | -3/Research | Lost 4 parts (1p1u2w) 18303 | -3/Research | System corruption reached 10% 18391 | -3/Research | Core integrity fell below 50% 18399 | -3/Research | Core integrity fell below 20% 18412 | -3/Research | Identified exit to Garrison 18412 | -3/Research | Entered Garrison 18427 | -3/Garrison | Lost 21 parts (1p6n8u6w) 18494 | -3/Garrison | Released all parts (8) 18510 | -3/Garrison | Triggered checkpoint 18510 | -3/Garrison | Destroyed by G-67 Veteran with Field Laser Last Messages --------------- 18458_ Acquired Imp. Treads. 18461_ Acquired Gatling Laser. 18466_ Acquired Railgun. 18470_ Acquired Flak Gun. 18477_ Acquired Gatling Laser. 18480_ L2H6W&MO4LPHU FT&|NNA,J 18490_ Slug penetrates Y-72 Warden. 18491_ Slug penetrates Wall. 18494_ Penetrated by Slug. 18494_ Released Flak Gun. 18494_ Released Gatling Laser. 18494_ Released Imp. Deuterium Engine. 18494_ Released Broken Adv. Coolant Injector. 18494_ Released Encrypted Comm Array. 18494_ Released Imp. Treads. 18494_ Released Railgun. 18494_ Released Gatling Laser. 18498_ Penetrated by Slug. 18509_ System corrupted: Energy discharge (-34). 18510_ Beams of light sweep through the air. An alarm sounds. Map ----- +----------------------------------------------------+ | ????????????????????????????????????????????????? | | ????????????????????????????????????????????????? | | ????????????????????????????????????????????????? | | ????????????????????????????????????????????????? | | ????????????????????????????????????????????????? | | ????????????????????????????????????????????????? | | ????????????????????????????????????????????????? | | ????????????????????????????????????????????????? | | ????????????????????????????????????????????????? | | ????????????????????????????????????????????????? | | ????????????????????????????????????????????????? | | ????????????????????????????????????????????????? | | ????????????????????????????????????????????????? | | ???????????????C????????????????????????????????? | | ????????????????????????????????????????????????? | | ????????????????????????????????????????????????? | | ????????????????????????????????????????????????? | | ????????????????????????????????????????????????? | | ????????????????????????????????????????????????? | | ????????????????????????????????????????????????? | | ????????????????????????????????????????????????? | | ????????????????????????????????????????????????? | | ????????????????????????????????????????????????? | | ????????????????????????????????????????????????? | | ??????????######?################???????????????? | | ?????????? @ #???????????????? | | ???????????? #?######## ### #???????????????? | | ????????????# #????????# gg#?# #???????????????? | | ????????????# #????????#####?# ###?????????????? | | ????????????# #??????????????# #"#?????????????? | | ????????????#s #??????????????# "#?????????????? | | ????????????s s#??????????????# "#?????????????? | | ????????????# #??????????????# "#?????????????? | | ????????????# #??????????????# #"#?????????????? | | ????????????# #??????????????# ###?############? | | ??# ######## #??????????????# #???# #? | | ??# ##########"""### ##### #? | | ??# Y Y #? | | ??########### ################ ##### #? | | ????????????# #####??????????# #???# #? | | ????????????# #"T"#??????????# "???# #? | | ????????????# "#??????????# "#??# = !#? | | ????????????# #####??????????# "#??#![ #? | | ????????????# #??????????????# "???#[![ #? | | ????????????# ##############?##"#??#[*= #? | | ????????????# #???#???############? | | ????????????# #???????????????????? | | ????????????############# #???????????????????? | | ????????????????????????# #???????????????????? | | ????????????????????????#####???????????????????? | +----------------------------------------------------+ Best States ------------- Heat Dissipation 107 Coolant Potential 100 Energy Generation 31 Energy Capacity 650 Matter Stores 300 Matter Capacity 300 Sight Range 22 Terrain Scan Density 10 Additional Mass Support 9 Corruption Containment 12 Corruption Block 20 Armor Coverage 600 Resistance: KI 20 Resistance: TH 30 Resistance: EX 50 Core Shielding 30 Weapon Shielding 66 Evasion (%) 55 Target Analysis 5 Recoil Reduction 2 Matter Filtering 30 Particle Charging 20 Salvage Targeting 2 Item Schematics ----------------- Combat Drone Bay | -6/Data Miner | Free Lgt. Regenerative Plating | -6/Data Miner | Free Cld. Nuclear Pulse Thruster | -6/Data Miner | Free Prc. Matter Filter | -6/Data Miner | Free Hvy. Proton Cannon | -6/Data Miner | Free Imp. Antigrav System | -6/Data Miner | Free Lrn. Sensor Array | -6/Data Miner | Free Micro-nuke Launcher | -6/Data Miner | Free Robot Schematics ------------------ G-50 Soldier | -6/Data Miner | Free R-10 Processor | -6/Data Miner | Free S-27 Virus | -6/Data Miner | Free I-47 Archangel | -6/Data Miner | Free A-27 Freighter | -6/Data Miner | Free M-36 Artificer | -6/Data Miner | Free X-67 Chaingunner | -6/Data Miner | Free Fabricated ------------ K-01 Serf | x4 | -6/Factory | Preloaded Centrium Wheel | x2 | -6/Factory | Preloaded Micro-nuke Launcher | x1 | -5/Factory Repaired ---------- Nothing Studied --------- Variable Charge Gun | -7/Factory | Hacked Com. Wheel | -7/Factory | Hacked Powered Hammer | -5/Factory | Hacked Lgt. Antimatter Reactor | -4/Factory | Hacked Alien Tech Used ----------------- None Achievements -------------- Hammer Time Physics Protects Challenges ------------ None Game ------ Seed DoorFrostObfuscator Manual? 0 Play Time 02:33:52 Cumulative 69.3 hours Start 2026.06.16 @ 22:43:24 End 2026.06.17 @ 17:11:53 Sessions 3 Manual Loads 0 Difficulty Rogue Special Mode None Game No. 76 Rogue 76 Adventurer 0 Explorer 0 Win Type - Total 0 Types 0/0/0/0/0/0/0/0/0/0 Lore% 57 Gallery% 41 Achievement% 31 Wizard Run 0 Options --------- Layout 1 ASCII 0 Keyboard 0 Movement Mouse Keybinds 0 Fullscreen 1 Font 32/SmallcapsGlow Map View 77x35 Zoom Use 0% Tactical HUD 1 Map Filters NONE Filters NONE Steam 1 RUN: 97cc3e83-4658-495d-a2e6-424bf38b6c36